Workbook

Sheet ENG REZEI
G2: 1TON=(1N/1000)*0.102
B12: نکته:ایتبس hw را ارتفاع طبقه در نظر میگیرد در حالی که hwطبق آیین نامه ارتفاع کل دیوار تا مقطع بحرانی خمش است.در واقع با این اشتباه ایتبس ضخامت دیوار را درست تعیین کرده اما در محاسبه ی آرماتور با مشکل مواجه است
E13: =IF(T22<=N22,"good","not good") -> good | F13: =T22/(P22*N22) -> 0.3018897154
E16: =IF(T22<=O22,"good","not good") -> good | F16: =T22/(P22*O22) -> 0.2400568821
E19: =M22*(E22/10)*100 -> 7.5
E20: =M26*(E26/10)*100 -> 7.5
A21: روش درست
B22: 15050 | C22: 3141 | D22: 3141 | E22: 300 | F22: =B22/D22 -> 4.791467685 | G22: =IF(F22<=1.5,0.25,IF(AND(F22>1.5,F22<2),AA22,IF(F22>=2,0.17))) -> 0.17 | H22: =D22*E22 -> 942300 | I22: =C22*E22 -> 942300 | J22: 25 | K22: =SQRT(J22) -> 5 | L22: 400 | M22: =MAX(0.0025,U22/(P22*C22*E22*L22)) -> 0.0025 | N22: =0.66*H22*K22 -> 3109590 | O22: =0.83*I22*K22 -> 3910545 | P22: 0.25 | Q22: =G22*H22*K22 -> 800955 | R22: =Q22*P22 -> 200238.75 | S22: =H22*(G22*K22+M22*L22) -> 1743255 | T22: 234688.31 | U22: =T22-R22 -> 34449.56 | AA22: =(0.245-(0.08*F22))/0.5 -> -0.2766348297
Q23: =(Q22/1000)*0.102 -> 81.69741 | R23: =(R22/1000)*0.102 -> 20.4243525 | S23: =(S22/1000)*0.102 -> 177.81201 | T23: =(T22/1000)*0.102 -> 23.93820762 | U23: =(U22/1000)*0.102 -> 3.51385512
N24: =(N22/1000)*0.102 -> 317.17818 | O24: =(O22/1000)*0.102 -> 398.87559
A25: روش غلط ایتبس
B26: 2750 | C26: 3141 | D26: 3141 | E26: 300 | F26: =B26/D26 -> 0.8755173512 | G26: =IF(F26<=1.5,0.25,IF(AND(F26>1.5,F26<2),AA26,IF(F26>=2,0.17))) -> 0.25 | H26: =D26*E26 -> 942300 | I26: =C26*E26 -> 942300 | J26: 25 | K26: =SQRT(J26) -> 5 | L26: 400 | M26: =MAX(0.0025,U26/(P26*C26*E26*L26)) -> 0.0025 | N26: =0.66*H26*K26 -> 3109590 | O26: =0.83*I26*K26 -> 3910545 | P26: 0.25 | Q26: =G26*H26*K26 -> 1177875 | R26: =Q26*P26 -> 294468.75 | S26: =H26*(G26*K26+M26*L26) -> 2120175 | T26: 234688.31 | U26: =T26-R26 -> -59780.44 | AA26: =(0.245-(0.08*F26))/0.5 -> 0.3499172238
Q27: =(Q26/1000)*0.102 -> 120.14325 | R27: =(R26/1000)*0.102 -> 30.0358125 | S27: =(S26/1000)*0.102 -> 216.25785 | T27: =(T26/1000)*0.102 -> 23.93820762 | U27: =(U26/1000)*0.102 -> -6.09760488
N28: =(N26/1000)*0.102 -> 317.17818 | O28: =(O26/1000)*0.102 -> 398.87559
G30: =MAX(D31,0.00028*D32*1000) -> 6
B31: ns | D31: 6
D32: =B22/1000 -> 15.05
D33: =C22/1000 -> 3.141
B34: dynamic Analyze? | D34: no
B35: زلزله های ایتبس چقدر افزایش یافته | E35: 3.1
B36: Ωv | D36: =IF(D32/D33>1.5,MAX(E35,1.5),1) -> 3.1
B37: ωv | D37: =IF(D34="No",IF(D32/D33<2,1,IF(G30>6,MIN(1.3+G30/30,1.8),0.9+G30/10)),IF(D32/D33<2,1,MIN(1.2+G30/50,1.8))) -> 1.5
B38: Ωv*ωv | D38: =D36*D37 -> 4.65
D39: =0.75/(MIN(3,D36*D37)) -> 0.25
M42: yes
M43: no

Sheet DR.SOLTANABADI
A1: P | B1: M2 | C1: M3
A2: 3309.7146 | B2: 0.0005 | C2: 410.0668 | E2: Input Data | F2: hwcs= | G2: 17.1
A3: 3309.7146 | B3: -0.0001 | C3: 618.6295 | F3: Lw= | G3: 4
A4: 3309.7146 | B4: -0.0004 | C4: 715.9852 | F4: Pu= | G4: 74.07
A5: 3309.7146 | B5: -0.0006 | C5: 810.8208 | F5: Mu= | G5: 356.88 | R5: ELF
A6: 3309.7146 | B6: -0.0008 | C6: 903.1383 | F6: ns= | G6: 5 | R6: MRSA
A7: 3309.7146 | B7: -0.001 | C7: 992.9399 | F7: Analysis Type= | G7: MRSA | U7: =G4 -> 74.07 | V7: =G5 -> 356.88
A8: 3309.7146 | B8: -0.0012 | C8: 1078.6914 | U8: =U7 -> 74.07 | V8: =G12 -> 782.790508
A9: 3309.7146 | B9: -0.0015 | C9: 1163.4683
A10: 3309.7146 | B10: -0.0017 | C10: 1245.6702
A11: 3309.7146 | B11: -0.0019 | C11: 1325.3464
A12: 3309.7146 | B12: -0.0021 | C12: 1402.517 | E12: Output Data | F12: Mpr= | G12: 782.790508
A13: 3309.7146 | B13: -0.0023 | C13: 1477.185 | F13: ωv= | G13: 1.3
A14: 3309.7146 | B14: -0.0026 | C14: 1548.0575 | F14: Ωv= | G14: 2.193427785
A15: 3309.7146 | B15: -0.0028 | C15: 1617.7298 | F15: ωv*Ωv= | G15: 2.851456121
A16: 3309.7146 | B16: -0.003 | C16: 1684.9095 | F16: 0.75/(ωv*Ωv)= | G16: =0.75/G15 -> 0.2630235109
A17: 3297.3163 | B17: -0.0032 | C17: 1749.6002 | G17: =G16 -> 0.2630235109
A18: 3247.3178 | B18: -0.0035 | C18: 1811.806
A19: 3198.0655 | B19: -0.0037 | C19: 1870.4756
A20: 3147.8456 | B20: -0.0039 | C20: 1927.7246
A21: 3097.5064 | B21: -0.0041 | C21: 1982.5023
A22: 3047.0418 | B22: -0.0044 | C22: 2034.814
A23: 2996.4449 | B23: -0.0046 | C23: 2084.6651 | F23: MAX PU | G23: =MAX(A2:A198) -> 3309.7146
A24: 2946.563 | B24: -0.0048 | C24: 2131.2467 | F24: MAX MU | G24: =MAX(C2:C307) -> 2573.119
A25: 2895.6797 | B25: -0.005 | C25: 2176.1951
A26: 2844.6411 | B26: -0.0053 | C26: 2218.7022
A27: 2793.4383 | B27: -0.0055 | C27: 2258.7755
A28: 2742.0617 | B28: -0.0057 | C28: 2296.4229
A29: 2691.3551 | B29: -0.006 | C29: 2331.0785
A30: 2639.5988 | B30: -0.0062 | C30: 2363.9007
A31: 2587.6351 | B31: -0.0064 | C31: 2394.3251
A32: 2535.4506 | B32: -0.0067 | C32: 2422.3625
A33: 2483.0311 | B33: -0.0069 | C33: 2448.025
A34: 2431.1205 | B34: -0.0071 | C34: 2470.8416
A35: 2378.0795 | B35: -0.0074 | C35: 2491.6306
A36: 2324.7476 | B36: -0.0076 | C36: 2510.0796
A37: 2271.1044 | B37: -0.0078 | C37: 2526.2048
A38: 2217.127 | B38: -0.0081 | C38: 2540.0242
A39: 2163.645 | B39: -0.0083 | C39: 2551.464
A40: 2108.9225 | B40: -0.0086 | C40: 2560.7329
A41: 2051.5196 | B41: -0.0054 | C41: 2567.3769
A42: 1993.5052 | B42: -0.0063 | C42: 2571.4386
A43: 1934.9389 | B43: -0.0072 | C43: 2573.119
A44: 1877.3908 | B44: -0.0082 | C44: 2571.0071
A45: 1818.9461 | B45: -0.0093 | C45: 2565.1613
A46: 1760.2445 | B46: -0.0103 | C46: 2556.1934
A47: 1701.9314 | B47: -0.0115 | C47: 2542.8618
A48: 1642.9545 | B48: -0.0127 | C48: 2526.968
A49: 1585.5157 | B49: -0.0093 | C49: 2506.601
A50: 1526.3389 | B50: -0.0108 | C50: 2482.6033
A51: 1467.4171 | B51: -0.0122 | C51: 2454.5802
A52: 1408.3042 | B52: -0.0138 | C52: 2422.9719
A53: 1348.9087 | B53: -0.0155 | C53: 2387.9261
A54: 1290.7076 | B54: -0.0173 | C54: 2349.3569
A55: 1230.7394 | B55: -0.0193 | C55: 2307.0684
A56: 1171.7287 | B56: -0.0214 | C56: 2260.3006
A57: 1111.7033 | B57: -0.0236 | C57: 2210.2251
A58: 1051.8162 | B58: -0.0194 | C58: 2155.6876
A59: 992.101 | B59: -0.0218 | C59: 2097.7832
A60: 931.1174 | B60: -0.0244 | C60: 2035.0895
A61: 870.2787 | B61: -0.0273 | C61: 1968.1996
A62: 808.0627 | B62: -0.0305 | C62: 1897.0633
A63: 746.7829 | B63: -0.034 | C63: 1821.8273
A64: 684.5111 | B64: -0.0381 | C64: 1742.798
A65: 621.6955 | B65: -0.0427 | C65: 1658.4326
A66: 557.3652 | B66: -0.0431 | C66: 1568.5607
A67: 491.2072 | B67: -0.0417 | C67: 1471.9649
A68: 423.962 | B68: -0.0472 | C68: 1369.296
A69: 353.9795 | B69: -0.054 | C69: 1259.4559
A70: 285.4922 | B70: -0.0903 | C70: 1146.9806
A71: 207.1504 | B71: -0.1335 | C71: 1015.4749
A72: 126.5457 | B72: -0.1682 | C72: 875.6146
A73: 32.602 | B73: -0.1993 | C73: 709.4379
A74: -76.9386 | B74: -0.2286 | C74: 513.1284
A75: -179.9112 | B75: -0.184 | C75: 320.1795
A76: -281.429 | B76: -0.1602 | C76: 121.1493
A77: -392.2216 | B77: -0.0192 | C77: -104.1777
A78: -547.4 | B78: -0.0006 | C78: -428.2682

Sheet DR.SHOJA
B1: P | C1: M2 | D1: M3 | F1: Ppr | G1: Mpr
A2: 1 | B2: 3309.7146 | C2: 0.0005 | D2: 410.0668 | F2: =-B2 -> -3309.7146 | G2: =IF($J$3="M2",ABS(C2),ABS(D2)) -> 410.0668
A3: 2 | B3: 3309.7146 | C3: -0.0001 | D3: 618.6295 | F3: =-B3 -> -3309.7146 | G3: 618.6295 | I3: Mpr= | J3: M3 | M3: row number | N3: Ppr | O3: Mpr
A4: 3 | B4: 3309.7146 | C4: -0.0004 | D4: 715.9852 | F4: -3309.7146 | G4: 715.9852 | I4: Pu= | J4: 74.07 | K4: ton | L4: =-J4 -> -74.07 | M4: =MATCH(L4,$F$2:$F$204) -> 71 | N4: =INDEX($F$2:$F$130,M4) -> -126.5457 | O4: =INDEX($G$2:$G$130,M4) -> 875.6146
A5: 4 | B5: 3309.7146 | C5: -0.0006 | D5: 810.8208 | F5: -3309.7146 | G5: 810.8208 | I5: Mu= | J5: 356.88 | K5: ton.m | L5: =ABS(J5) -> 356.88 | M5: =M4+1 -> 72 | N5: =INDEX($F$2:$F$130,M5) -> -32.602 | O5: =INDEX($G$2:$G$130,M5) -> 709.4379
A6: 5 | B6: 3309.7146 | C6: -0.0008 | D6: 903.1383 | F6: -3309.7146 | G6: 903.1383 | I6: Mpr= | J6: =(L4-N4)/(N5-N4)*(O5-O4)+O4 -> 782.790508 | K6: ton.m
A7: 6 | B7: 3309.7146 | C7: -0.001 | D7: 992.9399 | F7: -3309.7146 | G7: 992.9399 | I7: Ω= | J7: =MAX(1.5,ABS(J6/J5)) -> 2.193427785
A8: 7 | B8: 3309.7146 | C8: -0.0012 | D8: 1078.6914 | F8: -3309.7146 | G8: 1078.6914
A9: 8 | B9: 3309.7146 | C9: -0.0015 | D9: 1163.4683 | F9: -3309.7146 | G9: 1163.4683
A10: 9 | B10: 3309.7146 | C10: -0.0017 | D10: 1245.6702 | F10: -3309.7146 | G10: 1245.6702 | I10: n= | J10: 5
A11: 10 | B11: 3309.7146 | C11: -0.0019 | D11: 1325.3464 | F11: -3309.7146 | G11: 1325.3464 | I11: hw= | J11: 17.1 | K11: m
A12: 11 | B12: 3309.7146 | C12: -0.0021 | D12: 1402.517 | F12: -3309.7146 | G12: 1402.517 | I12: n(eq)= | J12: =0.28*J11 -> 4.788 | N12: Static
A13: 12 | B13: 3309.7146 | C13: -0.0023 | D13: 1477.185 | F13: -3309.7146 | G13: 1477.185 | I13: N= | J13: =MAX(J10,J12) -> 5 | N13: Dynamic
A14: 13 | B14: 3309.7146 | C14: -0.0026 | D14: 1548.0575 | F14: -3309.7146 | G14: 1548.0575 | I14: Analysis Type= | J14: Dynamic
A15: 14 | B15: 3309.7146 | C15: -0.0028 | D15: 1617.7298 | F15: -3309.7146 | G15: 1617.7298 | I15: w-static= | J15: =MIN(1.8,IF(J13<=6,0.9+J13/10,1.3+J13/30)) -> 1.4
A16: 15 | B16: 3309.7146 | C16: -0.003 | D16: 1684.9095 | F16: -3309.7146 | G16: 1684.9095 | I16: w-Dynamic= | J16: =MIN(1.8,1.2+J13/50) -> 1.3
A17: 16 | B17: 3297.3163 | C17: -0.0032 | D17: 1749.6002 | F17: -3297.3163 | G17: 1749.6002 | I17: w= | J17: =IF(J14="Static",J15,MIN(J15,J16)) -> 1.3
A18: 17 | B18: 3247.3178 | C18: -0.0035 | D18: 1811.806 | F18: -3247.3178 | G18: 1811.806 | I18: ωΩ= | J18: =MIN(3,J7*J17) -> 2.851456121
A19: 18 | B19: 3198.0655 | C19: -0.0037 | D19: 1870.4756 | F19: -3198.0655 | G19: 1870.4756 | I19: ∅= | J19: =0.75/J18 -> 0.2630235109
A20: 19 | B20: 3147.8456 | C20: -0.0039 | D20: 1927.7246 | F20: -3147.8456 | G20: 1927.7246
A21: 20 | B21: 3097.5064 | C21: -0.0041 | D21: 1982.5023 | F21: -3097.5064 | G21: 1982.5023
A22: 21 | B22: 3047.0418 | C22: -0.0044 | D22: 2034.814 | F22: -3047.0418 | G22: 2034.814
A23: 22 | B23: 2996.4449 | C23: -0.0046 | D23: 2084.6651 | F23: -2996.4449 | G23: 2084.6651
A24: 23 | B24: 2946.563 | C24: -0.0048 | D24: 2131.2467 | F24: -2946.563 | G24: 2131.2467
A25: 24 | B25: 2895.6797 | C25: -0.005 | D25: 2176.1951 | F25: -2895.6797 | G25: 2176.1951
A26: 25 | B26: 2844.6411 | C26: -0.0053 | D26: 2218.7022 | F26: -2844.6411 | G26: 2218.7022
A27: 26 | B27: 2793.4383 | C27: -0.0055 | D27: 2258.7755 | F27: -2793.4383 | G27: 2258.7755
A28: 27 | B28: 2742.0617 | C28: -0.0057 | D28: 2296.4229 | F28: -2742.0617 | G28: 2296.4229
A29: 28 | B29: 2691.3551 | C29: -0.006 | D29: 2331.0785 | F29: -2691.3551 | G29: 2331.0785
A30: 29 | B30: 2639.5988 | C30: -0.0062 | D30: 2363.9007 | F30: -2639.5988 | G30: 2363.9007
A31: 30 | B31: 2587.6351 | C31: -0.0064 | D31: 2394.3251 | F31: -2587.6351 | G31: 2394.3251
A32: 31 | B32: 2535.4506 | C32: -0.0067 | D32: 2422.3625 | F32: -2535.4506 | G32: 2422.3625
A33: 32 | B33: 2483.0311 | C33: -0.0069 | D33: 2448.025 | F33: -2483.0311 | G33: 2448.025
A34: 33 | B34: 2431.1205 | C34: -0.0071 | D34: 2470.8416 | F34: -2431.1205 | G34: 2470.8416
A35: 34 | B35: 2378.0795 | C35: -0.0074 | D35: 2491.6306 | F35: -2378.0795 | G35: 2491.6306
A36: 35 | B36: 2324.7476 | C36: -0.0076 | D36: 2510.0796 | F36: -2324.7476 | G36: 2510.0796
A37: 36 | B37: 2271.1044 | C37: -0.0078 | D37: 2526.2048 | F37: -2271.1044 | G37: 2526.2048
A38: 37 | B38: 2217.127 | C38: -0.0081 | D38: 2540.0242 | F38: -2217.127 | G38: 2540.0242
A39: 38 | B39: 2163.645 | C39: -0.0083 | D39: 2551.464 | F39: -2163.645 | G39: 2551.464
A40: 39 | B40: 2108.9225 | C40: -0.0086 | D40: 2560.7329 | F40: -2108.9225 | G40: 2560.7329
A41: 40 | B41: 2051.5196 | C41: -0.0054 | D41: 2567.3769 | F41: -2051.5196 | G41: 2567.3769
A42: 41 | B42: 1993.5052 | C42: -0.0063 | D42: 2571.4386 | F42: -1993.5052 | G42: 2571.4386
A43: 42 | B43: 1934.9389 | C43: -0.0072 | D43: 2573.119 | F43: -1934.9389 | G43: 2573.119
A44: 43 | B44: 1877.3908 | C44: -0.0082 | D44: 2571.0071 | F44: -1877.3908 | G44: 2571.0071
A45: 44 | B45: 1818.9461 | C45: -0.0093 | D45: 2565.1613 | F45: -1818.9461 | G45: 2565.1613
A46: 45 | B46: 1760.2445 | C46: -0.0103 | D46: 2556.1934 | F46: -1760.2445 | G46: 2556.1934
A47: 46 | B47: 1701.9314 | C47: -0.0115 | D47: 2542.8618 | F47: -1701.9314 | G47: 2542.8618
A48: 47 | B48: 1642.9545 | C48: -0.0127 | D48: 2526.968 | F48: -1642.9545 | G48: 2526.968
A49: 48 | B49: 1585.5157 | C49: -0.0093 | D49: 2506.601 | F49: -1585.5157 | G49: 2506.601
A50: 49 | B50: 1526.3389 | C50: -0.0108 | D50: 2482.6033 | F50: -1526.3389 | G50: 2482.6033
A51: 50 | B51: 1467.4171 | C51: -0.0122 | D51: 2454.5802 | F51: -1467.4171 | G51: 2454.5802
A52: 51 | B52: 1408.3042 | C52: -0.0138 | D52: 2422.9719 | F52: -1408.3042 | G52: 2422.9719
A53: 52 | B53: 1348.9087 | C53: -0.0155 | D53: 2387.9261 | F53: -1348.9087 | G53: 2387.9261
A54: 53 | B54: 1290.7076 | C54: -0.0173 | D54: 2349.3569 | F54: -1290.7076 | G54: 2349.3569
A55: 54 | B55: 1230.7394 | C55: -0.0193 | D55: 2307.0684 | F55: -1230.7394 | G55: 2307.0684
A56: 55 | B56: 1171.7287 | C56: -0.0214 | D56: 2260.3006 | F56: -1171.7287 | G56: 2260.3006
A57: 56 | B57: 1111.7033 | C57: -0.0236 | D57: 2210.2251 | F57: -1111.7033 | G57: 2210.2251
A58: 57 | B58: 1051.8162 | C58: -0.0194 | D58: 2155.6876 | F58: -1051.8162 | G58: 2155.6876
A59: 58 | B59: 992.101 | C59: -0.0218 | D59: 2097.7832 | F59: -992.101 | G59: 2097.7832
A60: 59 | B60: 931.1174 | C60: -0.0244 | D60: 2035.0895 | F60: -931.1174 | G60: 2035.0895
A61: 60 | B61: 870.2787 | C61: -0.0273 | D61: 1968.1996 | F61: -870.2787 | G61: 1968.1996
A62: 61 | B62: 808.0627 | C62: -0.0305 | D62: 1897.0633 | F62: -808.0627 | G62: 1897.0633
A63: 62 | B63: 746.7829 | C63: -0.034 | D63: 1821.8273 | F63: -746.7829 | G63: 1821.8273
A64: 63 | B64: 684.5111 | C64: -0.0381 | D64: 1742.798 | F64: -684.5111 | G64: 1742.798
A65: 64 | B65: 621.6955 | C65: -0.0427 | D65: 1658.4326 | F65: -621.6955 | G65: 1658.4326
A66: 65 | B66: 557.3652 | C66: -0.0431 | D66: 1568.5607 | F66: -557.3652 | G66: =IF($J$3="M2",ABS(C66),ABS(D66)) -> 1568.5607
A67: 66 | B67: 491.2072 | C67: -0.0417 | D67: 1471.9649 | F67: =-B67 -> -491.2072 | G67: 1471.9649
A68: 67 | B68: 423.962 | C68: -0.0472 | D68: 1369.296 | F68: -423.962 | G68: 1369.296
A69: 68 | B69: 353.9795 | C69: -0.054 | D69: 1259.4559 | F69: -353.9795 | G69: 1259.4559
A70: 69 | B70: 285.4922 | C70: -0.0903 | D70: 1146.9806 | F70: -285.4922 | G70: 1146.9806
A71: 70 | B71: 207.1504 | C71: -0.1335 | D71: 1015.4749 | F71: -207.1504 | G71: 1015.4749
A72: 71 | B72: 126.5457 | C72: -0.1682 | D72: 875.6146 | F72: -126.5457 | G72: 875.6146
A73: 72 | B73: 32.602 | C73: -0.1993 | D73: 709.4379 | F73: -32.602 | G73: 709.4379
A74: 73 | B74: -76.9386 | C74: -0.2286 | D74: 513.1284 | F74: 76.9386 | G74: 513.1284
A75: 74 | B75: -179.9112 | C75: -0.184 | D75: 320.1795 | F75: 179.9112 | G75: 320.1795
A76: 75 | B76: -281.429 | C76: -0.1602 | D76: 121.1493 | F76: 281.429 | G76: 121.1493
A77: 76 | B77: -392.2216 | C77: -0.0192 | D77: -104.1777 | F77: 392.2216 | G77: 104.1777
A78: 77 | B78: -547.4 | C78: -0.0006 | D78: -428.2682 | F78: 547.4 | G78: 428.2682
A79: 78 | F79: 0 | G79: 0
A80: 79 | F80: 0 | G80: 0
A81: 80 | F81: 0 | G81: 0
A82: 81 | F82: 0 | G82: 0
A83: 82 | F83: 0 | G83: 0
A84: 83 | F84: 0 | G84: 0
A85: 84 | F85: 0 | G85: 0
A86: 85 | F86: 0 | G86: 0
A87: 86 | F87: 0 | G87: 0
A88: 87 | F88: 0 | G88: 0
A89: 88 | F89: 0 | G89: 0
A90: 89 | F90: 0 | G90: 0
A91: 90 | F91: 0 | G91: 0
A92: 91 | F92: 0 | G92: 0
A93: 92 | F93: 0 | G93: 0
A94: 93 | F94: 0 | G94: 0
A95: 94 | F95: 0 | G95: 0
A96: 95 | F96: 0 | G96: 0
A97: 96 | F97: 0 | G97: 0
A98: 97 | F98: 0 | G98: 0
A99: 98 | F99: 0 | G99: 0
A100: 99 | F100: 0 | G100: 0
A101: 100 | F101: 0 | G101: 0
A102: 101 | F102: 0 | G102: 0
A103: 102 | F103: 0 | G103: 0
A104: 103 | F104: 0 | G104: 0
A105: 104 | F105: 0 | G105: 0
A106: 105 | F106: 0 | G106: 0
A107: 106 | F107: 0 | G107: 0
A108: 107 | F108: 0 | G108: 0
A109: 108 | F109: 0 | G109: 0
A110: 109 | F110: 0 | G110: 0
A111: 110 | F111: 0 | G111: 0
A112: 111 | F112: 0 | G112: 0
A113: 112 | F113: 0 | G113: 0
A114: 113 | F114: 0 | G114: 0
A115: 114 | F115: 0 | G115: 0
A116: 115 | F116: 0 | G116: 0
A117: 116 | F117: 0 | G117: 0
A118: 117 | F118: 0 | G118: 0
A119: 118 | F119: 0 | G119: 0
A120: 119 | F120: 0 | G120: 0
A121: 120 | F121: 0 | G121: 0
A122: 121 | F122: 0 | G122: 0
A123: 122 | F123: 0 | G123: 0
A124: 123 | F124: 0 | G124: 0
A125: 124 | F125: 0 | G125: 0
A126: 125 | F126: 0 | G126: 0
A127: 126 | F127: 0 | G127: 0
A128: 127 | F128: 0 | G128: 0
A129: 128 | F129: 0 | G129: 0
A130: 129 | F130: 0 | G130: =IF($J$3="M2",ABS(C130),ABS(D130)) -> 0
